fUST/lending_fUST_20250901
["ID","MTS","AMOUNT","RATE_DAILY","PERIOD"]
[382583311,1756674639685,-480.0,0.0001678,2]
[382583313,1756674639694,-979.7,0.0001678,2]
[382583315,1756674639704,-480.0,0.0001678,2]
[382583317,1756674639713,-1585.93,0.0001678,2]
[382583319,1756674639722,-612.34,0.0001678,2]
[382583320,1756674639731,-505.39,0.0001678,2]
[382583322,1756674639740,-1499.59,0.0001678,2]
[382583324,1756674639752,-649.57,0.0001678,2]
[382583326,1756674639761,-480.0,0.0001678,2]
[382583328,1756674639770,-480.0,0.0001678,2]
[382583330,1756674639779,-487.49,0.0001678,2]
[382583332,1756674639789,-579.1,0.0001678,2]
[382583334,1756674639798,-480.0,0.0001678,2]
[382583336,1756674639809,-480.0,0.0001678,2]
[382583338,1756674639818,-979.23,0.0001678,2]
[382583340,1756674639827,-480.0,0.00016781,2]
[382583342,1756674639837,-922.29,0.00016781,2]
[382583344,1756674639846,-480.0,0.00016781,2]
[382583346,1756674639855,-480.0,0.00016781,2]
[382583348,1756674639864,-480.0,0.00016781,2]
[382583350,1756674639873,-480.0,0.00016781,2]
[382583352,1756674639883,-480.0,0.00016781,2]
[382583354,1756674639892,-487.12,0.00016781,2]
[382583356,1756674639901,-480.0,0.00016781,2]
[382583358,1756674639911,-560.06,0.00016781,2]
[382583360,1756674639920,-480.0,0.00016781,2]
[382583362,1756674639930,-480.0,0.00016781,2]
[382583364,1756674639940,-480.0,0.00016781,2]
[382583366,1756674639951,-480.0,0.00016781,2]
[382583369,1756674639960,-480.0,0.00016781,2]
[382583371,1756674639970,-480.0,0.00016781,2]
[382583373,1756674639979,-1330.57,0.00016781,2]
[382583375,1756674639989,-480.0,0.00016781,2]
[382583377,1756674639998,-480.0,0.00016781,2]
[382583379,1756674640007,-480.0,0.00016781,2]
[382583382,1756674640016,-480.0,0.00016781,2]
[382583385,1756674640025,-480.0,0.00016781,2]
[382583388,1756674640035,-480.0,0.00016781,2]
[382583390,1756674640044,-623.42,0.00016781,2]
[382583393,1756674640054,-480.0,0.00016781,2]
[382583396,1756674640063,-480.0,0.00016781,2]
[382583399,1756674640073,-553.56,0.00016781,2]
[382583403,1756674640083,-614.54,0.00016781,2]
[382583406,1756674640093,-733.87,0.00016781,2]
[382583409,1756674640102,-480.0,0.00016781,2]
[382583412,1756674640112,-947.4,0.00016781,2]
[382583415,1756674640121,-971.89,0.00016781,2]
[382583418,1756674640132,-781.55,0.00016781,2]
[382583421,1756674640146,-480.0,0.00016781,2]
[382583424,1756674640156,-480.0,0.00016781,2]
[382583428,1756674640166,-480.0,0.00016781,2]
[382583432,1756674640176,-480.0,0.00016781,2]
[382583436,1756674640186,-480.0,0.00016781,2]
[382583439,1756674640196,-920.75,0.00016781,2]
[382583442,1756674640206,-480.0,0.00016781,2]
[382583444,1756674640215,-480.0,0.00016781,2]
[382583446,1756674640225,-480.0,0.00016781,2]
[382583448,1756674640235,-706.22,0.00016781,2]
[382583450,1756674640245,-3485.14,0.00016781,2]
[382583452,1756674640254,-559.23,0.00016781,2]
[382583453,1756674640263,-1384.43,0.00016781,2]
[382583456,1756674640273,-694.71,0.00016781,2]
[382583457,1756674640282,-480.0,0.00016781,2]
[382583460,1756674640293,-773.25,0.00016781,2]
[382583462,1756674640302,-480.0,0.00016781,2]
[382583464,1756674640311,-772.05,0.00016781,2]
[382583465,1756674640320,-480.0,0.00016781,2]
[382583468,1756674640331,-480.0,0.00016781,2]
[382583470,1756674640344,-480.0,0.00016781,2]
[382583472,1756674640354,-824.35,0.00016781,2]
[382583474,1756674640363,-905.18,0.00016781,2]
[382583476,1756674640373,-673.01,0.00016781,2]
[382583478,1756674640382,-480.0,0.00016781,2]
[382583480,1756674640393,-929.05,0.00016781,2]
[382583482,1756674640402,-4200.05,0.00016781,2]
[382583484,1756674640411,-5722.98,0.00016781,2]
[382583485,1756674640421,-577.04,0.00016781,2]
[382583488,1756674640431,-595.51,0.00016781,2]
[382583489,1756674640440,-856.48,0.00016781,2]
[382583491,1756674640455,-480.0,0.00016781,2]
[382583493,1756674640464,-775.39,0.00016781,2]
[382583495,1756674640474,-478.17347262,0.00016781,2]
[382583497,1756674640483,-500.0,0.00016781,2]
[382583499,1756674640493,-1901.44,0.00016781,2]
[382583502,1756674640503,-199.53515934,0.00016781,2]
[382583503,1756674640512,-480.0,0.00016781,2]
[382583505,1756674640521,-403.69838574,0.00016781,2]
[382583507,1756674640530,-151.0,0.00016781,2]
[382583509,1756674640541,-151.0,0.00016781,2]
[382583511,1756674640551,-1143.32,0.00016781,2]
[382583513,1756674640560,-480.0,0.00016781,2]
[382583515,1756674640570,-480.0,0.00016781,2]
[382583518,1756674640579,-480.0,0.00016781,2]
[382583520,1756674640588,-480.0,0.00016781,2]
[382583521,1756674640598,-678.0,0.00016781,2]
[382583523,1756674640607,-480.0,0.00016781,2]
[382583525,1756674640615,-480.0,0.00016781,2]
[382583527,1756674640625,-767.3,0.00016781,2]
[382583529,1756674640634,-480.0,0.00016781,2]
[382583531,1756674640643,-151.0,0.00016781,2]
[382583533,1756674640652,-151.0,0.00016781,2]
[382583535,1756674640661,-500.0,0.00016781,2]
[382583537,1756674640670,-198.0,0.00016781,2]
[382583539,1756674640680,-151.0,0.00016781,2]
[382583541,1756674640689,-198.0,0.00016781,2]
[382583543,1756674640699,-151.0,0.00016781,2]
[382583545,1756674640708,-480.0,0.00016781,2]
[382583547,1756674640717,-480.0,0.00016781,2]
[382583549,1756674640727,-4028.03,0.00016781,2]
[382583551,1756674640736,-843.58,0.00016781,2]
[382583553,1756674640745,-480.0,0.00016781,2]
[382583555,1756674640754,-973.72,0.00016781,2]
[382583557,1756674640764,-480.0,0.00016781,2]
[382583559,1756674640773,-2742.43,0.00016781,2]
[382583561,1756674640783,-480.0,0.00016781,2]
[382583563,1756674640792,-812.45,0.00016781,2]
[382583565,1756674640802,-480.0,0.00016781,2]
[382583567,1756674640811,-480.0,0.00016781,2]
[382583569,1756674640820,-480.0,0.00016781,2]
[382583571,1756674640829,-883.04,0.00016781,2]
[382583573,1756674640838,-480.0,0.00016781,2]
[382583575,1756674640848,-480.0,0.00016781,2]
[382583577,1756674640857,-617.9,0.00016781,2]
[382583579,1756674640866,-480.0,0.00016781,2]
[382583581,1756674640875,-480.0,0.00016781,2]
[382583583,1756674640885,-480.0,0.00016781,2]
[382583585,1756674640895,-524.07,0.00016781,2]
[382583587,1756674640904,-480.0,0.00016781,2]
[382583589,1756674640914,-480.0,0.00016781,2]
[382583591,1756674640923,-860.12,0.00016781,2]
[382583593,1756674640933,-1015.41,0.00016781,2]
[382583595,1756674640943,-919.49,0.00016781,2]
[382583597,1756674640952,-151.0,0.000168,2]
[382583599,1756674640962,-151.0,0.000168,2]
[382583601,1756674640971,-31125.00914924,0.00016801,2]
[382583603,1756674640981,-848.0,0.00016817,2]
[382583605,1756674640991,-480.0,0.00016823,2]
[382583607,1756674641001,-480.0,0.00016823,2]
[382583609,1756674641011,-744.5,0.00016823,2]
[382583611,1756674641021,-874.18,0.00016823,2]
[382583613,1756674641029,-480.0,0.00016823,2]
[382583615,1756674641040,-480.0,0.00016824,2]
[382583617,1756674641048,-480.0,0.00016824,2]
[382583619,1756674641058,-480.0,0.00016824,2]
[382583621,1756674641067,-480.0,0.00016824,2]
[382583623,1756674641076,-480.0,0.00016824,2]
[382583625,1756674641086,-480.0,0.00016824,2]
[382583627,1756674641095,-895.0,0.00016824,2]
[382583629,1756674641104,-480.0,0.00016824,2]
[382583631,1756674641114,-480.0,0.00016824,2]
[382583633,1756674641123,-480.0,0.00016824,2]
[382583634,1756674641133,-762.61,0.00016824,2]
[382583636,1756674641142,-480.0,0.00016824,2]
[382583638,1756674641153,-480.0,0.00016824,2]
[382583640,1756674641162,-785.19,0.00016824,2]
[382583642,1756674641171,-480.0,0.00016824,2]
[382583644,1756674641181,-1046.65,0.00016824,2]
[382583646,1756674641190,-522.49,0.00016824,2]
[382583648,1756674641199,-480.0,0.00016824,2]
[382583650,1756674641208,-480.0,0.00016824,2]
[382583652,1756674641218,-480.0,0.00016824,2]
[382583654,1756674641227,-480.0,0.00016824,2]
[382583656,1756674641237,-480.0,0.00016824,2]
[382583658,1756674641246,-480.0,0.00016824,2]
[382583660,1756674641255,-480.0,0.00016824,2]
[382583662,1756674641264,-480.0,0.00016824,2]
[382583664,1756674641273,-856.76,0.00016824,2]
[382583666,1756674641282,-480.0,0.00016824,2]
[382583668,1756674641291,-480.0,0.00016824,2]
[382583670,1756674641300,-1087.8,0.00016824,2]
[382583672,1756674641310,-480.0,0.00016824,2]
[382583674,1756674641319,-995.77,0.00016824,2]
[382583676,1756674641328,-480.0,0.00016824,2]
[382583678,1756674641339,-480.0,0.00016824,2]
[382583680,1756674641349,-480.0,0.00016824,2]
[382583682,1756674641359,-836.07,0.00016824,2]
[382583683,1756674641368,-548.66,0.00016824,2]
[382583685,1756674641377,-698.27,0.00016824,2]
[382583687,1756674641387,-480.0,0.00016824,2]
[382583689,1756674641396,-480.0,0.00016824,2]
[382583691,1756674641406,-765.48,0.00016824,2]
[382583693,1756674641415,-1225.05,0.00016824,2]
[382583696,1756674641425,-674.39,0.00016824,2]
[382583697,1756674641435,-480.0,0.00016824,2]
[382583699,1756674641445,-480.0,0.00016824,2]
[382583701,1756674641457,-480.0,0.00016824,2]
[382583703,1756674641466,-480.0,0.00016824,2]
[382583705,1756674641475,-533.61,0.00016824,2]
[382583707,1756674641486,-508.04,0.00016824,2]
[382583709,1756674641495,-480.0,0.00016824,2]
[382583711,1756674641504,-480.0,0.00016824,2]
[382583713,1756674641514,-876.55,0.00016824,2]
[382583715,1756674641525,-480.0,0.00016824,2]
[382583717,1756674641536,-480.0,0.00016824,2]
[382583719,1756674641545,-480.0,0.00016824,2]
[382583721,1756674641556,-555.91,0.00016824,2]
[382583723,1756674641567,-1110.35,0.00016824,2]
[382583725,1756674641578,-989.14,0.00016824,2]
[382583727,1756674641588,-623.15,0.00016824,2]
[382583729,1756674641598,-314.23768306,0.00016824,2]
[382583731,1756674641608,-480.0,0.00016824,2]
[382583733,1756674641618,-972.85,0.00016824,2]
[382583735,1756674641627,-480.0,0.00016824,2]
[382583737,1756674641636,-562.21,0.00016824,2]
[382583739,1756674641646,-1052.02,0.00016824,2]
[382583741,1756674641656,-480.0,0.00016824,2]
[382583743,1756674641665,-480.0,0.00016824,2]
[382583745,1756674641675,-480.0,0.00016824,2]
[382583747,1756674641684,-480.0,0.00016824,2]
[382583769,1756674641880,-480.0,0.00016824,2]
[382583771,1756674641891,-480.0,0.00016824,2]
[382583773,1756674641901,-480.0,0.00016824,2]
[382583775,1756674641911,-480.0,0.00016824,2]
[382583777,1756674641920,-480.0,0.00016824,2]
[382583779,1756674641931,-480.0,0.00016824,2]
[382583781,1756674641940,-480.0,0.00016824,2]
[382583783,1756674641950,-480.0,0.00016824,2]
[382583785,1756674641960,-480.0,0.00016824,2]
[382583787,1756674641969,-510.79,0.00016824,2]
[382583789,1756674641979,-719.42,0.00016824,2]
[382583791,1756674641989,-480.0,0.00016824,2]
[382583793,1756674641998,-573.64,0.00016824,2]
[382583795,1756674642007,-480.0,0.00016824,2]
[382583797,1756674642017,-480.0,0.00016824,2]
[382583799,1756674642026,-649.3,0.00016824,2]
[382583801,1756674642036,-585.21,0.00016824,2]
[382583803,1756674642046,-480.0,0.00016824,2]
[382583805,1756674642056,-480.0,0.00016824,2]
[382583807,1756674642066,-480.0,0.00016824,2]
[382583809,1756674642075,-496.46,0.00016824,2]
[382583811,1756674642085,-1173.25,0.00016824,2]
[382583813,1756674642094,-480.0,0.00016824,2]
[382583815,1756674642103,-480.0,0.00016824,2]
[382583817,1756674642113,-480.0,0.00016824,2]
[382583819,1756674642123,-480.0,0.00016824,2]
[382583821,1756674642132,-480.0,0.00016824,2]
[382583823,1756674642141,-480.0,0.00016824,2]
[382583824,1756674642150,-482.35,0.00016824,2]
[382583826,1756674642160,-518.63,0.00016824,2]
[382583828,1756674642169,-480.0,0.00016824,2]
[382583831,1756674642180,-866.81,0.00016824,2]
[382583833,1756674642191,-895.76,0.00016824,2]
[382583835,1756674642201,-910.6,0.00016824,2]
[382583837,1756674642211,-587.72,0.00016824,2]
[382583839,1756674642221,-480.0,0.00016824,2]
[382583841,1756674642230,-882.7,0.00016824,2]
[382583842,1756674642240,-480.0,0.00016824,2]
[382583844,1756674642249,-480.0,0.00016824,2]
[382583847,1756674642259,-990.58,0.00016824,2]
[382583848,1756674642269,-892.91,0.00016824,2]
[382583850,1756674642278,-480.0,0.00016824,2]
[382583852,1756674642288,-480.0,0.00016824,2]
[382583854,1756674642299,-1124.35,0.00016824,2]
[382583856,1756674642308,-480.0,0.00016824,2]
[382583858,1756674642317,-480.0,0.00016824,2]
[382583860,1756674642327,-480.0,0.00016824,2]
[382583862,1756674642336,-556.81,0.00016824,2]
[382583864,1756674642346,-480.0,0.00016824,2]
[382583866,1756674642356,-1094.52,0.00016824,2]
[382583868,1756674642366,-480.0,0.00016824,2]
[382583870,1756674642375,-849.35,0.00016824,2]
[382583872,1756674642385,-480.0,0.00016824,2]
[382583874,1756674642394,-930.7,0.00016824,2]
[382583877,1756674642405,-1508.46,0.00016824,2]
[382583879,1756674642415,-599.26,0.00016824,2]
[382583880,1756674642424,-1303.59,0.00016824,2]
[382583882,1756674642434,-1151.72,0.00016824,2]
[382583885,1756674642445,-480.0,0.00016824,2]
[382583886,1756674642458,-480.0,0.00016824,2]
[382583888,1756674642468,-480.0,0.00016824,2]
[382583891,1756674642478,-480.0,0.00016824,2]
[382583893,1756674642489,-480.0,0.00016824,2]
[382583895,1756674642498,-480.0,0.00016824,2]
[382583897,1756674642508,-480.0,0.00016824,2]
[382583899,1756674642519,-480.0,0.00016824,2]
[382583900,1756674642529,-480.0,0.00016824,2]
[382583903,1756674642542,-480.0,0.00016824,2]
[382583904,1756674642552,-970.25,0.00016824,2]
[382583906,1756674642562,-480.0,0.00016824,2]
[382583908,1756674642571,-631.64,0.00016824,2]
[382583910,1756674642581,-480.0,0.00016824,2]
[382583912,1756674642590,-1809.39,0.00016824,2]
[382583914,1756674642600,-480.0,0.00016824,2]
[382583916,1756674642609,-480.0,0.00016824,2]
[382583917,1756674642618,-480.0,0.00016824,2]
[382583918,1756674642627,-480.0,0.00016824,2]
[382583919,1756674642636,-497.68,0.00016824,2]
[382583920,1756674642645,-590.05947215,0.00016824,2]
[382583921,1756674642654,-480.0,0.00016824,2]
[382583922,1756674642663,-480.0,0.00016824,2]
[382583923,1756674642673,-480.0,0.00016824,2]
[382583924,1756674642682,-480.0,0.00016824,2]
[382583925,1756674642691,-1577.96,0.00016824,2]
[382583926,1756674642701,-480.0,0.00016824,2]
[382583927,1756674642710,-560.13,0.00016824,2]
[382583928,1756674642720,-480.0,0.00016824,2]
[382583929,1756674642730,-480.0,0.00016824,2]
[382583930,1756674642740,-963.21,0.00016824,2]
[382583931,1756674642749,-480.0,0.00016824,2]
[382583932,1756674642759,-480.0,0.00016824,2]
[382583933,1756674642768,-572.97,0.00016824,2]
[382583934,1756674642777,-480.0,0.00016824,2]
[382583935,1756674642786,-480.0,0.00016824,2]
[382583936,1756674642795,-480.0,0.00016824,2]
[382583937,1756674642806,-1082.95,0.00016824,2]
[382583938,1756674642815,-480.0,0.00016824,2]
[382583939,1756674642824,-553.35,0.00016824,2]
[382583940,1756674642834,-535.16,0.00016824,2]
[382583941,1756674642843,-480.0,0.00016824,2]
[382583942,1756674642853,-535.7,0.00016824,2]
[382583943,1756674642863,-480.0,0.00016824,2]
[382583944,1756674642875,-480.0,0.00016824,2]
[382583946,1756674642884,-1149.21,0.00016824,2]
[382583947,1756674642894,-480.0,0.00016824,2]
[382583948,1756674642904,-480.0,0.00016824,2]
[382583949,1756674642914,-660.94,0.00016824,2]
[382583951,1756674642923,-480.0,0.00016824,2]
[382583953,1756674642932,-480.0,0.00016824,2]
[382583955,1756674642942,-594.61,0.00016824,2]
[382583957,1756674642951,-480.0,0.00016824,2]
[382583959,1756674642960,-480.0,0.00016824,2]
[382583961,1756674642970,-480.0,0.00016824,2]
[382583962,1756674642980,-480.0,0.00016824,2]
[382583964,1756674642989,-333.83539052,0.00016824,2]
[382583966,1756674642998,-779.46,0.00016824,2]
[382583968,1756674643008,-569.86,0.00016824,2]
[382583970,1756674643017,-480.0,0.00016824,2]
[382583972,1756674643026,-480.0,0.00016824,2]
[382583974,1756674643036,-944.13,0.00016824,2]
[382583976,1756674643045,-480.0,0.00016824,2]
[382583978,1756674643055,-480.0,0.00016824,2]
[382583980,1756674643064,-480.0,0.00016824,2]
[382583982,1756674643074,-1125.84,0.00016824,2]
[382583984,1756674643084,-674.7,0.00016825,2]
[382583986,1756674643094,-427.78250325,0.00016825,2]
[382583988,1756674643104,-480.0,0.00016825,2]
[382583990,1756674643115,-480.0,0.00016825,2]
[382583992,1756674643125,-480.0,0.00016825,2]
[382583994,1756674643135,-480.0,0.00016825,2]
[382583996,1756674643145,-874.1,0.00016825,2]
[382583998,1756674643154,-480.0,0.00016825,2]
[382584000,1756674643164,-480.0,0.00016825,2]
[382584002,1756674643174,-480.0,0.00016825,2]
[382584004,1756674643183,-480.0,0.00016825,2]
[382584007,1756674643193,-480.0,0.00016825,2]
[382584008,1756674643202,-480.0,0.00016825,2]
[382584010,1756674643212,-480.0,0.00016825,2]
[382584012,1756674643222,-480.0,0.00016825,2]
[382584014,1756674643231,-480.0,0.00016825,2]
[382584016,1756674643240,-502.64,0.00016825,2]
[382584018,1756674643250,-480.0,0.00016825,2]
[382584020,1756674643259,-580.79,0.00016825,2]
[382584022,1756674643268,-484.01,0.00016825,2]
[382584024,1756674643279,-480.0,0.00016825,2]
[382584026,1756674643288,-500.0,0.00016826,2]
[382584028,1756674643297,-480.0,0.00016826,2]
[382584030,1756674643308,-413.11432787,0.00016826,2]
[382584032,1756674643318,-480.0,0.00016826,2]
[382584034,1756674643327,-480.0,0.00016826,2]
[382584036,1756674643336,-841.54,0.00016826,2]
[382584038,1756674643345,-480.0,0.00016826,2]
[382584040,1756674643354,-480.0,0.00016826,2]
[382584042,1756674643364,-514.58,0.00016826,2]
[382584044,1756674643373,-598.24666933,0.00016826,2]
[382584046,1756674643383,-480.0,0.00016826,2]
[382584048,1756674643393,-658.13,0.00016826,2]
[382584050,1756674643402,-480.0,0.00016826,2]
[382584052,1756674643413,-493.34,0.00016826,2]
[382584054,1756674643422,-581.62,0.00016826,2]
[382584056,1756674643431,-480.0,0.00016826,2]
[382584058,1756674643440,-1146.22,0.00016826,2]
[382584060,1756674643455,-675.12,0.00016826,2]
[382584062,1756674643464,-480.0,0.00016826,2]
[382584064,1756674643474,-480.0,0.00016826,2]
[382584066,1756674643484,-537.04,0.00016826,2]
[382584068,1756674643494,-1256.0,0.00016828,2]
[382584070,1756674643503,-239.98789527,0.00016828,2]
[382584072,1756674643514,-151.0,0.00016828,2]
[382584074,1756674643524,-151.0,0.00016828,2]
[382584076,1756674643534,-151.0,0.00016828,2]
[382584077,1756674643543,-151.0,0.00016828,2]
[382584080,1756674643553,-380.96556048,0.0001684,2]
[382584081,1756674643562,-500.0,0.00016873,2]
[382584083,1756674643572,-500.0,0.00016873,2]
[382584085,1756674643581,-500.0,0.00016873,2]
[382584087,1756674643591,-500.0,0.00016873,2]
[382584089,1756674643600,-500.0,0.00016873,2]
[382584091,1756674643610,-500.0,0.00016873,2]
[382584093,1756674643620,-500.0,0.00016873,2]
[382584095,1756674643629,-500.0,0.00016873,2]
[382584097,1756674643639,-373.13586244,0.00016873,2]
[382584099,1756674643648,-500.0,0.00016873,2]
[382584101,1756674643658,-500.0,0.00016873,2]
[382584103,1756674643667,-500.0,0.00016873,2]
[382584105,1756674643676,-500.0,0.00016873,2]
[382584107,1756674643686,-500.0,0.00016873,2]
[382584109,1756674643695,-500.0,0.00016873,2]
[382584111,1756674643704,-403.58140753,0.00016873,2]
[382584114,1756674643713,-501.21878673,0.00016873,2]
[382584117,1756674643722,-500.0,0.00016873,2]
[382584120,1756674643731,-300.0,0.00016881,2]
[382584123,1756674643741,-300.0,0.00016881,2]
[382584125,1756674643751,-300.0,0.00016881,2]
[382584127,1756674643760,-300.0,0.00016881,2]
[382584129,1756674643769,-300.0,0.00016881,2]
[382584131,1756674643778,-300.0,0.00016881,2]
[382584133,1756674643788,-300.0,0.00016881,2]
[382584135,1756674643797,-300.0,0.00016881,2]
[382584137,1756674643806,-300.0,0.00016881,2]
[382584139,1756674643815,-300.0,0.00016881,2]
[382584141,1756674643825,-300.0,0.00016881,2]
[382584143,1756674643834,-300.0,0.00016881,2]
[382584145,1756674643844,-300.0,0.00016881,2]
[382584147,1756674643853,-300.0,0.00016881,2]
[382584149,1756674643863,-300.0,0.00016881,2]
[382584151,1756674643872,-151.0,0.00016881,2]
[382584153,1756674643882,-151.0,0.00016881,2]
[382584155,1756674643891,-151.0,0.00016881,2]
[382584157,1756674643900,-151.0,0.00016881,2]
[382584159,1756674643909,-600.0,0.00016882,2]
[382584161,1756674643919,-11364.23969824,0.00016883,2]
[382584164,1756674643928,-160.0,0.0001689,2]
[382584165,1756674643937,-160.0,0.0001689,2]
[382584167,1756674643947,-845.95363151,0.0001689,2]
[382584169,1756674643956,-232.78794292,0.0001689,2]
[382584171,1756674643966,-425.75173308,0.0001689,2]
[382584173,1756674643981,-530.02580203,0.0001689,2]
[382584175,1756674643992,-160.0,0.0001689,2]
[382584177,1756674644002,-160.0,0.0001689,2]
[382584179,1756674644011,-160.0,0.0001689,2]
[382584182,1756674644025,-160.0,0.0001689,2]
[382584183,1756674644034,-417.15472785,0.0001689,2]
[382584185,1756674644043,-160.0,0.0001689,2]
[382584187,1756674644052,-217.4012883,0.0001689,2]
[382584189,1756674644062,-160.0,0.0001689,2]
[382584191,1756674644071,-160.0,0.00016893,2]
[382584193,1756674644080,-160.0,0.00016895,2]
[382584195,1756674644089,-151.0,0.000169,2]
[382584197,1756674644098,-151.0,0.000169,2]
[382584199,1756674644107,-151.0,0.000169,2]
[382584201,1756674644117,-151.0,0.000169,2]
[382584203,1756674644126,-848.0,0.00016955,2]
[382584205,1756674644135,-335.0,0.00016957,2]
[382584207,1756674644144,-848.0,0.00016975,2]
[382584209,1756674644153,-1804.51294593,0.00016992,2]
[382584211,1756674644163,-151.0,0.00017,2]
[382584213,1756674644173,-151.0,0.00017,2]
[382584215,1756674644183,-151.0,0.00017,2]
[382584217,1756674644192,-380.96556048,0.00017034,2]
[382584219,1756674644202,-848.0,0.00017046,2]
[382584221,1756674644211,-1032.83,0.00017054,2]
[382584223,1756674644221,-621.14,0.00017054,2]
[382584225,1756674644230,-480.0,0.00017054,2]
[382584227,1756674644240,-480.0,0.00017054,2]
[382584229,1756674644249,-1833.22,0.00017054,2]
[382584231,1756674644259,-480.0,0.00017054,2]
[382584233,1756674644268,-480.0,0.00017054,2]
[382584235,1756674644277,-979.7,0.00017054,2]
[382584236,1756674644287,-480.0,0.00017054,2]
[382584239,1756674644298,-1585.93,0.00017054,2]
[382584240,1756674644308,-612.34,0.00017054,2]
[382584243,1756674644319,-505.39,0.00017054,2]
[382584245,1756674644328,-1499.59,0.00017054,2]
[382584247,1756674644340,-649.57,0.00017054,2]
[382584249,1756674644350,-480.0,0.00017054,2]
[382584250,1756674644359,-259.71120939,0.00017054,2]
[382584252,1756674644369,-487.49,0.00017054,2]
[382584254,1756674644379,-579.1,0.00017054,2]
[382584256,1756674644388,-480.0,0.00017054,2]
[382584258,1756674644397,-480.0,0.00017054,2]
[382584260,1756674644407,-979.23,0.00017054,2]
[382584262,1756674644416,-500.0,0.00017055,2]
[382584264,1756674644426,-151.0,0.00017055,2]
[382584266,1756674644436,-151.0,0.00017055,2]
[382584268,1756674644447,-151.0,0.00017055,2]
[382584270,1756674644457,-151.0,0.00017055,2]
[382584272,1756674644466,-500.0,0.00017055,2]
[382584274,1756674644475,-151.0,0.00017055,2]
[382584276,1756674644485,-480.0,0.00017055,2]
[382584278,1756674644494,-922.29,0.00017055,2]
[382584281,1756674644503,-480.0,0.00017055,2]
[382584282,1756674644514,-480.0,0.00017055,2]
[382584284,1756674644524,-480.0,0.00017055,2]
[382584286,1756674644534,-480.0,0.00017055,2]
[382584288,1756674644544,-480.0,0.00017055,2]
[382584290,1756674644553,-487.12,0.00017055,2]
[382584292,1756674644562,-480.0,0.00017055,2]
[382584294,1756674644572,-560.06,0.00017055,2]
[382584296,1756674644581,-480.0,0.00017055,2]
[382584298,1756674644590,-480.0,0.00017055,2]
[382584300,1756674644599,-480.0,0.00017055,2]
[382584302,1756674644609,-1330.57,0.00017055,2]
[382584304,1756674644618,-480.0,0.00017055,2]
[382584306,1756674644628,-480.0,0.00017055,2]
[382584308,1756674644638,-480.0,0.00017055,2]
[382584310,1756674644649,-480.0,0.00017055,2]
[382584312,1756674644659,-623.42,0.00017055,2]
[382584314,1756674644669,-480.0,0.00017055,2]
[382584316,1756674644680,-480.0,0.00017055,2]
[382584318,1756674644689,-553.56,0.00017055,2]